bitfinex/quotes_BTCUSD_20240908
["timestamp","ask_amount","ask_price","bid_price","bid_amount"]
[1725820035873,1.25796668,54453.0,54452.0,0.00163]
[1725820039950,1.42323641,54453.0,54452.0,0.00163]
[1725820040591,1.26190719,54453.0,54452.0,0.00163]
[1725820041025,1.23311691,54453.0,54452.0,0.00163]
[1725820041211,1.2619077,54453.0,54452.0,0.00163]
[1725820042333,1.2619077,54453.0,54452.0,0.08393]
[1725820043000,1.17359252,54453.0,54452.0,0.08393]
[1725820043458,1.2619077,54453.0,54452.0,0.08393]
[1725820045472,1.26028907,54453.0,54452.0,0.08393]
[1725820047637,1.26041736,54453.0,54452.0,0.08393]
[1725820048461,1.26041736,54453.0,54452.0,0.00163]
[1725820050295,1.71976315,54453.0,54452.0,0.00163]
[1725820050516,1.78886315,54453.0,54452.0,0.00163]
[1725820050742,0.440827,54443.0,54442.0,0.0779]
[1725820050958,1.2551985,54443.0,54442.0,0.0779]
[1725820051176,1.2551985,54443.0,54442.0,0.08750404]
[1725820051177,1.5490835,54443.0,54442.0,0.08750404]
[1725820051636,1.5490835,54443.0,54442.0,0.0779]
[1725820051842,1.5620835,54443.0,54442.0,0.0779]
[1725820052320,1.5490835,54443.0,54442.0,0.0779]
[1725820053200,1.5590835,54443.0,54442.0,0.0779]
[1725820053616,0.146958,54437.0,54436.0,0.002]
[1725820053844,0.64239148,54437.0,54436.0,0.0799]
[1725820054044,0.64239148,54437.0,54436.0,0.0899]
[1725820054261,0.64239148,54437.0,54436.0,0.1888]
[1725820054688,0.64239148,54437.0,54436.0,0.19544712]
[1725820055034,0.65239148,54437.0,54436.0,0.19744712]
[1725820055485,0.64239148,54437.0,54436.0,0.1888]
[1725820055688,0.65239148,54437.0,54436.0,0.1888]
[1725820056090,0.65239148,54437.0,54436.0,0.1788]
[1725820056375,0.65839148,54437.0,54436.0,0.1888]
[1725820056591,0.65239148,54437.0,54436.0,0.1888]
[1725820057039,0.65839148,54437.0,54436.0,0.1888]
[1725820057274,0.64839148,54437.0,54436.0,0.19744712]
[1725820057657,0.65839148,54437.0,54436.0,0.19744712]
[1725820057918,0.65839148,54437.0,54436.0,0.19907712]
[1725820059228,0.65839148,54437.0,54436.0,0.19707712]
[1725820059652,0.65839148,54437.0,54436.0,0.19043]
[1725820059870,0.65839148,54437.0,54436.0,0.19907712]
[1725820060094,0.65839148,54437.0,54436.0,0.18907712]
[1725820060541,0.8158659,54437.0,54436.0,0.18043]
[1725820060762,0.83235841,54437.0,54436.0,0.19002597]
[1725820061205,0.81635841,54437.0,54436.0,0.19002597]
[1725820061425,0.98955286,54437.0,54436.0,0.19002597]
[1725820061635,1.00055286,54437.0,54436.0,0.19002597]
[1725820061849,1.00055286,54437.0,54436.0,0.18043]
[1725820062067,0.98955286,54437.0,54436.0,0.18043]
[1725820062282,1.00155286,54437.0,54436.0,0.18043]
[1725820062473,0.81983594,54437.0,54436.0,0.18043]
[1725820062811,0.81183594,54437.0,54436.0,0.18043]
[1725820063023,0.81183594,54437.0,54436.0,0.19004662]
[1725820063236,0.82083594,54437.0,54436.0,0.19004662]
[1725820064384,0.65564149,54437.0,54436.0,0.19004662]
[1725820064594,0.63464149,54437.0,54436.0,0.19004662]
[1725820064808,0.64764149,54437.0,54436.0,0.19004662]
[1725820065054,1.29812448,54437.0,54436.0,0.01124662]
[1725820065284,1.31392384,54437.0,54436.0,0.01124662]
[1725820065496,1.31392384,54437.0,54436.0,0.00163]
[1725820065707,1.32492384,54437.0,54436.0,0.00163]
[1725820065937,1.34910536,54437.0,54436.0,0.00163]
[1725820066149,1.34810536,54437.0,54436.0,0.00163]
[1725820066359,1.33810536,54437.0,54436.0,0.00163]
[1725820066616,1.34910536,54437.0,54436.0,0.00163]
[1725820066842,0.39220867,54437.0,54436.0,0.10993]
[1725820067069,0.77444085,54437.0,54436.0,0.19083]
[1725820067303,0.77444085,54437.0,54436.0,0.18883]
[1725820067529,0.77644085,54437.0,54436.0,0.18883]
[1725820067764,0.78844085,54437.0,54436.0,0.18883]
[1725820067989,0.77544085,54437.0,54436.0,0.18883]
[1725820068421,0.77544085,54437.0,54436.0,0.19847055]
[1725820068641,0.77544085,54437.0,54436.0,0.20047055]
[1725820068923,1.08335785,54437.0,54436.0,0.01127055]
[1725820069149,1.07135785,54437.0,54436.0,0.01127055]
[1725820069365,1.51385505,54437.0,54436.0,0.00163]
[1725820069799,1.50285505,54437.0,54436.0,0.00163]
[1725820070009,1.37927485,54437.0,54436.0,0.00163]
[1725820070535,1.37831823,54437.0,54436.0,0.00163]
[1725820070622,1.50189033,54437.0,54436.0,0.00163]
[1725820070843,1.51589033,54437.0,54436.0,0.00163]
[1725820071484,1.37831823,54437.0,54436.0,0.00163]
[1725820071912,1.29000305,54437.0,54436.0,0.00163]
[1725820072138,1.37831823,54437.0,54436.0,0.00163]
[1725820073798,1.36431823,54437.0,54436.0,0.00163]
[1725820074020,1.35031823,54437.0,54436.0,0.00163]
[1725820074247,1.36131823,54437.0,54436.0,0.00163]
[1725820074497,1.49890282,54437.0,54436.0,0.00163]
[1725820074705,1.51290282,54437.0,54436.0,0.00163]
[1725820074925,1.37531823,54437.0,54436.0,0.00163]
[1725820075988,1.54040833,54437.0,54436.0,0.00163]
[1725820076405,1.69682249,54437.0,54436.0,0.00163]
[1725820076655,1.54040833,54437.0,54436.0,0.00163]
[1725820076913,1.52640833,54437.0,54436.0,0.00163]
[1725820077127,1.54040833,54437.0,54436.0,0.00163]
[1725820077546,1.52640833,54437.0,54436.0,0.00163]
[1725820077976,1.54040833,54437.0,54436.0,0.00163]
[1725820078242,1.73999411,54437.0,54436.0,0.00163]
[1725820078459,1.51773239,54437.0,54436.0,0.00163]
[1725820079300,1.51542239,54437.0,54436.0,0.00163]
[1725820079544,1.52942239,54437.0,54436.0,0.00163]
[1725820080183,1.54342239,54437.0,54436.0,0.00163]
[1725820080412,1.52800837,54437.0,54436.0,0.00163]
[1725820080614,1.5567881,54437.0,54436.0,0.00163]
[1725820080822,1.72884023,54437.0,54436.0,0.00163]
[1725820081026,1.5707881,54437.0,54436.0,0.00163]
[1725820081444,1.48247292,54437.0,54436.0,0.00163]
[1725820081660,1.5707881,54437.0,54436.0,0.00163]
[1725820082124,1.58598025,54437.0,54436.0,0.00163]
[1725820082331,1.5716216,54437.0,54436.0,0.08363]
[1725820082555,1.5716216,54437.0,54436.0,0.18703]
[1725820083247,1.5716216,54437.0,54436.0,0.08363]
[1725820085359,1.73115709,54437.0,54436.0,0.08363]
[1725820085807,1.58648375,54437.0,54436.0,0.08363]
[1725820086034,1.57163467,54437.0,54436.0,0.08363]
[1725820086666,1.58751069,54437.0,54436.0,0.08363]
[1725820087970,1.75268293,54437.0,54436.0,0.08363]
[1725820088428,1.58751069,54437.0,54436.0,0.08363]
[1725820088853,1.58787451,54437.0,54436.0,0.08363]
[1725820089702,0.734832,54434.0,54433.0,0.1034]
[1725820089982,1.02720376,54434.0,54433.0,0.1034]
[1725820090868,1.04120376,54434.0,54433.0,0.1034]
[1725820091306,1.05220376,54434.0,54433.0,0.1034]
[1725820092891,1.05220376,54434.0,54433.0,0.1854]
[1725820095539,1.20629643,54434.0,54433.0,0.1854]
[1725820096245,1.05220376,54434.0,54433.0,0.1854]
[1725820097474,1.21739536,54434.0,54433.0,0.1854]
[1725820097670,1.24149615,54434.0,54433.0,0.1854]
[1725820098971,1.24323525,54434.0,54433.0,0.1854]
[1725820099403,1.27201448,54434.0,54433.0,0.1854]
[1725820099613,1.2885598,54434.0,54433.0,0.1854]
[1725820100975,0.293949,54432.0,54426.0,0.012]
[1725820101222,0.08831518,54427.0,54426.0,0.012]
[1725820101464,0.35379289,54427.0,54426.0,0.012]
[1725820101698,0.45931712,54427.0,54426.0,0.0971]
[1725820101918,0.45931712,54427.0,54426.0,0.1948]
[1725820103003,0.45931712,54427.0,54426.0,0.341788]
[1725820103223,0.20552423,54427.0,54426.0,0.341788]
[1725820103873,0.20387741,54427.0,54426.0,0.341788]
[1725820104106,0.20387741,54427.0,54426.0,0.35591192]
[1725820104759,0.21287741,54427.0,54426.0,0.35591192]
[1725820105699,0.21287741,54427.0,54426.0,0.35754192]
[1725820106614,0.21287741,54427.0,54426.0,0.21055392]
[1725820107938,0.21323939,54427.0,54426.0,0.21055392]
[1725820108872,0.109,54427.0,54426.0,0.21055392]
[1725820109090,0.21373797,54427.0,54426.0,0.21055392]
[1725820118427,0.21373797,54427.0,54426.0,0.20855392]
[1725820118652,0.21373797,54427.0,54426.0,0.21055392]
[1725820123071,0.37911749,54427.0,54426.0,0.21055392]
[1725820124230,0.38190531,54427.0,54426.0,0.21055392]
[1725820124957,0.21655054,54427.0,54426.0,0.21055392]
[1725820126843,0.21055054,54427.0,54426.0,0.21055392]
[1725820127079,0.21755054,54427.0,54426.0,0.21055392]
[1725820127331,0.21455054,54427.0,54426.0,0.21055392]
[1725820127556,0.21155054,54427.0,54426.0,0.21055392]
[1725820127785,0.21855054,54427.0,54426.0,0.21055392]
[1725820129423,0.38390531,54427.0,54426.0,0.21055392]
[1725820129677,0.21855054,54427.0,54426.0,0.21055392]
[1725820131558,0.38401752,54427.0,54426.0,0.21055392]
[1725820131787,0.38401752,54427.0,54426.0,0.35754192]
[1725820132246,0.21855054,54427.0,54426.0,0.35754192]
[1725820133152,0.21855054,54427.0,54426.0,0.21055392]
[1725820134289,0.38401752,54427.0,54426.0,0.21055392]
[1725820138241,0.38401752,54427.0,54426.0,0.35754192]
[1725820138678,0.38567499,54427.0,54426.0,0.20855392]
[1725820139406,0.38567499,54427.0,54426.0,0.21055392]
[1725820142266,0.38515339,54427.0,54426.0,0.21055392]
[1725820142691,0.21965998,54427.0,54426.0,0.21055392]
[1725820144224,0.08831518,54429.0,54428.0,0.002]
[1725820144702,0.08831518,54429.0,54428.0,0.01613564]
[1725820144922,0.23529518,54429.0,54428.0,0.002]
[1725820145136,0.23529518,54429.0,54428.0,0.01613564]
[1725820145607,0.146977,54430.0,54429.0,0.002]
[1725820145842,0.23529518,54429.0,54428.0,0.01613564]
[1725820146091,0.23529518,54429.0,54428.0,0.002]
[1725820146287,0.33529518,54429.0,54428.0,0.002]
[1725820146494,0.34429518,54429.0,54428.0,0.003]
[1725820146906,0.35029518,54429.0,54428.0,0.003]
[1725820148875,0.35029518,54429.0,54428.0,0.01713636]
[1725820150396,0.20331518,54429.0,54428.0,0.09903636]
[1725820150603,0.115,54429.0,54428.0,0.09903636]
[1725820154426,0.115,54429.0,54428.0,0.25601936]
[1725820154653,0.015,54429.0,54428.0,0.25601936]
[1725820155107,0.015,54429.0,54428.0,0.10903636]
[1725820155328,0.015,54429.0,54428.0,0.25601936]
[1725820155556,0.18048576,54429.0,54428.0,0.25601936]
[1725820155776,0.28048576,54429.0,54428.0,0.25601936]
[1725820156840,0.28869026,54429.0,54428.0,0.25601936]
[1725820159291,0.38545942,54429.0,54428.0,0.25601936]
[1725820159509,0.38545942,54429.0,54428.0,0.25401936]
[1725820160828,0.15726181,54429.0,54428.0,0.10903636]
[1725820161249,0.06894663,54429.0,54428.0,0.54998536]
[1725820161485,0.08831518,54431.0,54430.0,0.002]
[1725820161907,0.08831518,54431.0,54430.0,0.01613957]
[1725820162137,0.08831518,54431.0,54430.0,0.002]
[1725820162361,0.23529018,54431.0,54430.0,0.01613957]
[1725820162585,0.23529018,54431.0,54430.0,0.002]
[1725820162797,0.24629018,54431.0,54430.0,0.01713957]
[1725820163007,0.34629018,54431.0,54430.0,0.003]
[1725820163229,0.34629018,54431.0,54430.0,0.01713957]
[1725820163461,0.35429018,54431.0,54430.0,0.01813957]
[1725820163705,0.019,54431.0,54430.0,0.26687243]
[1725820163930,0.12934026,54431.0,54430.0,0.7414783]
[1725820164166,0.10175554,54431.0,54430.0,0.67277157]
[1725820164378,0.07414182,54431.0,54430.0,0.67277157]
[1725820164588,0.07414182,54431.0,54430.0,0.96672657]
[1725820164800,0.06614182,54431.0,54430.0,0.96572657]
[1725820165010,0.05514182,54431.0,54430.0,1.09095903]
[1725820165240,0.001,54431.0,54430.0,1.09095903]
[1725820165516,0.005,54431.0,54430.0,1.09095903]
[1725820165763,0.005,54431.0,54430.0,1.38491403]
[1725820165764,0.001,54431.0,54430.0,1.38491403]
[1725820166431,0.000815,54436.0,54433.0,0.589878]
[1725820166432,0.05514182,54435.0,54433.0,0.589878]
[1725820166656,0.05514182,54435.0,54434.0,0.63027269]
[1725820166868,0.000815,54436.0,54435.0,0.655592]
[1725820167168,0.05592822,54436.0,54435.0,0.94952]
[1725820167369,0.000815,54436.0,54435.0,1.37201737]
[1725820167795,0.000815,54436.0,54435.0,1.36601737]
[1725820169378,0.004815,54436.0,54435.0,1.36601737]
[1725820170895,0.004815,54436.0,54435.0,1.36701737]
[1725820171106,0.000815,54436.0,54435.0,1.36601737]
[1725820171568,0.003815,54436.0,54435.0,1.36901737]
[1725820172254,0.000815,54436.0,54435.0,1.36901737]
[1725820174336,0.000815,54436.0,54435.0,1.25458398]
[1725820176264,0.000815,54436.0,54435.0,0.96065598]
[1725820182555,0.23609118,54436.0,54435.0,0.02713598]
[1725820182770,0.08913018,54436.0,54435.0,0.02713598]
[1725820182979,0.23609118,54436.0,54435.0,0.013]
[1725820183192,0.27747177,54436.0,54435.0,0.0270561]
[1725820183407,0.27747177,54436.0,54435.0,0.0320561]
[1725820183646,0.28247177,54436.0,54435.0,0.0420561]
[1725820183852,0.28247177,54436.0,54435.0,0.0390561]
[1725820184074,0.28747177,54436.0,54435.0,0.0390561]
[1725820184277,0.42943277,54436.0,54435.0,0.0390561]
[1725820184518,0.4519391,54436.0,54435.0,0.0390561]
[1725820184731,0.4569391,54436.0,54435.0,0.0390561]
[1725820184931,0.4649391,54436.0,54435.0,0.0350561]
[1725820185163,0.4649391,54436.0,54435.0,0.0400561]
[1725820185381,0.4649391,54436.0,54435.0,0.0350561]
[1725820185596,0.4649391,54436.0,54435.0,0.0400561]
[1725820186214,0.4569391,54436.0,54435.0,0.0390561]
[1725820186465,0.24109118,54436.0,54435.0,0.0390561]
[1725820186674,0.46166137,54436.0,54435.0,0.0400561]
[1725820186890,0.46666137,54436.0,54435.0,0.0250561]
[1725820187095,0.44866137,54436.0,54435.0,0.0240561]
[1725820187558,0.46166137,54436.0,54435.0,0.0250561]
[1725820187792,0.45666137,54436.0,54435.0,0.0250561]
[1725820188051,0.45366137,54436.0,54435.0,0.0256861]
[1725820188288,0.46166137,54436.0,54435.0,0.0266861]
[1725820188551,0.75558437,54436.0,54435.0,0.0266861]
[1725820188782,0.61808747,54436.0,54435.0,0.0266861]
[1725820189010,0.61808747,54436.0,54435.0,0.01263]
[1725820189460,0.60508747,54436.0,54435.0,0.01163]
[1725820189695,0.61008747,54436.0,54435.0,0.01163]
[1725820189940,0.61308747,54436.0,54435.0,0.01263]
[1725820190162,0.31916447,54436.0,54435.0,0.01263]
[1725820190408,0.31616447,54436.0,54435.0,0.01163]
[1725820190626,0.32416447,54436.0,54435.0,0.01263]
[1725820191085,0.60508747,54436.0,54435.0,0.01163]
[1725820191291,0.61308747,54436.0,54435.0,0.01263]
[1725820192779,0.60508747,54436.0,54435.0,0.01163]
[1725820193063,0.61808747,54436.0,54435.0,0.01263]
[1725820193396,0.61308747,54436.0,54435.0,0.01263]
[1725820193575,0.60908747,54436.0,54435.0,0.01163]
[1725820193779,0.61608747,54436.0,54435.0,0.01263]
[1725820194427,0.60508747,54436.0,54435.0,0.01163]
[1725820194647,0.61308747,54436.0,54435.0,0.01263]
[1725820194859,1.39173347,54436.0,54435.0,0.00263]
[1725820195069,1.67044992,54436.0,54435.0,0.00263]
[1725820195897,1.66244992,54436.0,54435.0,0.00163]
[1725820196119,1.65744992,54436.0,54435.0,0.00163]
[1725820196329,1.65813517,54436.0,54435.0,0.00263]
[1725820196556,1.66113517,54436.0,54435.0,0.00263]
[1725820196807,1.65813517,54436.0,54435.0,0.00263]
[1725820197019,1.67213517,54436.0,54435.0,0.00363]
[1725820197234,1.66513517,54436.0,54435.0,0.00263]
[1725820197931,1.67913517,54436.0,54435.0,0.00363]
[1725820199693,1.66513517,54436.0,54435.0,0.00263]
[1725820199945,1.66513517,54436.0,54435.0,0.00163]
[1725820200183,1.67913517,54436.0,54435.0,0.00163]
[1725820200620,1.67891412,54436.0,54435.0,0.00163]
[1725820200854,1.66491412,54436.0,54435.0,0.00163]
[1725820201322,1.67891412,54436.0,54435.0,0.00163]
[1725820201538,1.66491412,54436.0,54435.0,0.00163]
[1725820201742,0.52925518,54429.0,54428.0,0.00163]
[1725820201946,0.60114608,54429.0,54428.0,0.00163]
[1725820202160,1.23473979,54429.0,54428.0,0.00163]
[1725820202376,1.55750282,54429.0,54428.0,0.00163]
[1725820202630,0.45966067,54429.0,54428.0,0.00163]
[1725820202838,0.45966067,54429.0,54428.0,0.10253]
[1725820203061,0.86365677,54429.0,54428.0,0.10253]
[1725820203515,0.87065677,54429.0,54428.0,0.10353]
[1725820203764,0.57669677,54429.0,54428.0,0.10353]
[1725820204027,0.58569677,54429.0,54428.0,0.10353]
[1725820204457,0.39476977,54429.0,54428.0,0.10353]
[1725820204669,0.57532398,54429.0,54428.0,0.10353]
[1725820204877,0.58432398,54429.0,54428.0,0.10353]
[1725820205627,0.41367242,54429.0,54428.0,0.10353]
[1725820205854,0.4625997,54429.0,54428.0,0.10353]
[1725820209619,0.46255262,54429.0,54428.0,0.10353]
[1725820212077,0.45403911,54429.0,54428.0,0.10353]
[1725820212511,0.30705911,54429.0,54428.0,0.10353]
[1725820212724,0.45403911,54429.0,54428.0,0.10353]
[1725820213342,0.59146313,54429.0,54428.0,0.10353]
[1725820214522,0.38009821,54429.0,54428.0,0.10353]
[1725820214736,0.45262869,54429.0,54428.0,0.10353]
[1725820214906,0.59003768,54429.0,54428.0,0.10353]
[1725820215704,0.2547425,54429.0,54428.0,0.329413]
[1725820215907,0.2547425,54429.0,54428.0,0.334413]
[1725820215908,0.04480303,54429.0,54428.0,0.334413]
[1725820216110,0.016,54429.0,54428.0,0.922345]
[1725820216316,0.07096909,54429.0,54428.0,0.922345]
[1725820216533,0.016,54429.0,54428.0,0.922345]
[1725820216791,0.016,54429.0,54428.0,1.0367425]
[1725820217221,0.016,54429.0,54428.0,0.75870372]
[1725820218139,0.07096909,54429.0,54428.0,0.75870372]
[1725820218366,0.07096909,54429.0,54428.0,0.66430622]
[1725820218586,0.016,54429.0,54428.0,0.66430622]
[1725820219534,0.04479946,54429.0,54428.0,0.66430622]
[1725820220395,0.09977531,54429.0,54428.0,0.66430622]
[1725820221751,0.0997863,54429.0,54428.0,0.66430622]
[1725820222161,0.1006013,54429.0,54428.0,0.66430622]
[1725820222394,0.04561446,54429.0,54428.0,0.66430622]
[1725820222599,0.12807824,54429.0,54428.0,0.66430622]
[1725820222825,0.016815,54429.0,54428.0,0.66430622]
[1725820223271,0.09927878,54429.0,54428.0,0.66430622]
[1725820224354,0.09932753,54429.0,54428.0,0.66430622]
[1725820225845,0.07183356,54429.0,54428.0,1.02486584]
[1725820226066,0.07183231,54429.0,54428.0,1.02486584]
[1725820226300,0.016815,54429.0,54428.0,1.02486584]
[1725820226730,0.007815,54429.0,54428.0,1.02486584]
[1725820226967,0.005815,54429.0,54428.0,1.02386584]
[1725820227220,0.08832753,54429.0,54428.0,1.02386584]
[1725820227450,0.08832753,54429.0,54428.0,1.02786584]
[1725820227668,0.08832753,54429.0,54428.0,1.02386584]
[1725820228090,0.005815,54429.0,54428.0,1.02386584]
[1725820228320,0.000815,54429.0,54428.0,1.31783184]
[1725820229235,0.001815,54429.0,54428.0,1.32283184]
[1725820229462,0.001815,54429.0,54428.0,1.31783184]
[1725820229463,0.000815,54429.0,54428.0,1.31783184]
[1725820229673,0.001815,54429.0,54428.0,1.32383184]
[1725820233032,0.001815,54429.0,54428.0,1.61979784]
[1725820233269,0.001815,54429.0,54428.0,1.32583184]
[1725820233514,0.001815,54429.0,54428.0,1.61979784]
[1725820234178,0.001815,54429.0,54428.0,2.03676384]
[1725820234409,0.000815,54436.0,54435.0,1.53269118]
[1725820234649,0.000815,54436.0,54435.0,1.7652603]
[1725820234879,0.000815,54436.0,54435.0,1.78107409]
[1725820236463,0.002815,54436.0,54435.0,1.79307409]
[1725820238059,0.002815,54436.0,54435.0,2.08700209]
[1725820238285,0.002815,54436.0,54435.0,2.11000209]
[1725820239212,0.002815,54436.0,54435.0,2.12000209]
[1725820240657,0.002815,54436.0,54435.0,2.14411033]
[1725820241153,0.002815,54436.0,54435.0,1.70275891]
[1725820242066,0.002815,54436.0,54435.0,0.49370579]
[1725820242342,0.002815,54436.0,54435.0,0.78763379]
[1725820246201,0.002815,54436.0,54435.0,0.49370579]
[1725820246418,0.075715,54436.0,54435.0,0.49370579]
[1725820246634,0.074715,54436.0,54435.0,0.48170579]
[1725820247138,0.178815,54436.0,54435.0,0.02381379]
[1725820247371,0.178815,54436.0,54435.0,0.01581379]
[1725820247372,0.70701418,54436.0,54435.0,0.01581379]
[1725820247582,1.00093718,54436.0,54435.0,0.02081379]
[1725820247817,1.02424084,54436.0,54435.0,0.005]
[1725820248262,1.02324084,54436.0,54435.0,0.005]
[1725820248695,1.02424084,54436.0,54435.0,0.005]
[1725820248936,0.146966,54434.0,54433.0,0.01]
[1725820249579,0.146966,54434.0,54433.0,0.02378038]
[1725820249787,0.146966,54434.0,54433.0,0.01]
[1725820250019,0.146966,54434.0,54433.0,0.0238509]
[1725820250254,0.151966,54434.0,54433.0,0.01]
[1725820250488,0.153966,54434.0,54433.0,0.02385059]
[1725820250745,0.293939,54433.0,54429.0,0.005]
[1725820250961,0.1,54432.0,54429.0,0.005]
[1725820251165,0.246973,54432.0,54429.0,0.005]
[1725820251598,0.30185937,54432.0,54429.0,0.005]
[1725820252742,0.30485937,54432.0,54429.0,0.005]
[1725820253176,0.30185937,54432.0,54429.0,0.005]
[1725820253404,0.05489076,54431.0,54429.0,0.005]
[1725820255679,0.05889076,54431.0,54429.0,0.005]
[1725820255890,0.05989076,54431.0,54429.0,0.005]
[1725820256123,0.05589076,54431.0,54429.0,0.005]
[1725820256332,0.05889076,54431.0,54429.0,0.005]
[1725820256548,0.05989076,54431.0,54429.0,0.005]
[1725820256776,0.05889076,54431.0,54429.0,0.005]
[1725820257468,0.05889076,54431.0,54429.0,0.15198]
[1725820257929,0.05489076,54431.0,54429.0,0.15361]
[1725820258147,0.05989076,54431.0,54429.0,0.00663]
[1725820259005,0.05989076,54431.0,54429.0,0.00163]
[1725820259006,0.45211494,54430.0,54429.0,0.00163]
[1725820259213,0.92842136,54430.0,54429.0,0.00163]
[1725820259462,0.95281717,54430.0,54429.0,0.00163]
[1725820259666,0.93603565,54430.0,54429.0,0.00163]
[1725820259876,0.86971373,54430.0,54429.0,0.00163]
[1725820261167,0.87271373,54430.0,54429.0,0.00163]
[1725820261816,0.86971373,54430.0,54429.0,0.00163]
[1725820262020,0.87271373,54430.0,54429.0,0.00163]
[1725820262705,0.87471373,54430.0,54429.0,0.00163]
[1725820262938,0.86971373,54430.0,54429.0,0.00163]
[1725820263419,0.87571373,54430.0,54429.0,0.00263]
[1725820264101,1.20205894,54430.0,54429.0,0.00263]
[1725820264317,1.5338762,54430.0,54429.0,0.00263]
[1725820264540,1.42922444,54430.0,54429.0,0.00263]
[1725820264777,1.35384011,54430.0,54429.0,0.00263]
[1725820265004,1.20105894,54430.0,54429.0,0.00263]
[1725820265219,1.18805894,54430.0,54429.0,0.00163]
[1725820265452,1.19305894,54430.0,54429.0,0.00163]
[1725820265670,0.251977,54430.0,54429.0,0.00163]
[1725820265919,0.540932,54430.0,54429.0,0.00163]
[1725820266176,0.554932,54430.0,54429.0,0.00263]
[1725820267047,0.60986994,54430.0,54429.0,0.00263]
[1725820267262,0.60986994,54430.0,54429.0,0.01659251]
[1725820267474,0.60186994,54430.0,54429.0,0.00263]
[1725820267685,0.60686994,54430.0,54429.0,0.00163]
[1725820267890,0.61086994,54430.0,54429.0,0.00163]
[1725820268073,0.59586994,54430.0,54429.0,0.00163]
[1725820268575,0.60486994,54430.0,54429.0,0.00163]
[1725820269499,0.16393794,54430.0,54429.0,0.00663]
[1725820269759,0.16393794,54430.0,54429.0,0.15361]
[1725820269760,0.009,54430.0,54429.0,0.15361]
[1725820269976,0.009,54430.0,54429.0,0.16807013]
[1725820270186,0.009815,54430.0,54429.0,0.16807013]
[1725820270408,0.009815,54430.0,54429.0,0.23368014]
[1725820271525,0.009815,54430.0,54429.0,0.16807013]
[1725820273585,0.009815,54430.0,54429.0,0.24327013]
[1725820274012,0.009815,54430.0,54429.0,0.53723013]
[1725820274223,0.009815,54430.0,54429.0,0.24327013]
[1725820275858,0.009815,54430.0,54429.0,0.09629013]
[1725820276301,0.009815,54430.0,54429.0,0.24327013]
[1725820280326,0.009815,54430.0,54429.0,0.09629013]
[1725820280576,0.009815,54430.0,54429.0,0.02109013]
[1725820281494,0.06475294,54430.0,54429.0,0.02109013]
[1725820282543,0.009815,54430.0,54429.0,0.02109013]
[1725820283386,0.44516853,54432.0,54429.0,0.02109013]
[1725820283387,0.24231129,54432.0,54429.0,0.02109013]
[1725820283603,0.21479555,54432.0,54429.0,0.02109013]
[1725820284454,0.20200676,54431.0,54429.0,0.02109013]
[1725820284797,0.20200676,54431.0,54429.0,0.02209013]
[1725820285261,0.08082255,54432.0,54429.0,0.02209013]
[1725820285474,0.08082255,54432.0,54430.0,0.1521]
[1725820285475,0.21479655,54432.0,54430.0,0.1521]
[1725820285687,0.011,54431.0,54430.0,0.1521]
[1725820285914,0.06603176,54431.0,54430.0,0.1521]
[1725820286127,0.05903176,54431.0,54430.0,0.1521]
[1725820286362,0.004,54431.0,54430.0,0.1521]
[1725820287410,0.0865475,54431.0,54430.0,0.1521]
[1725820288047,0.0895475,54431.0,54430.0,0.1531]
[1725820288691,0.0935475,54431.0,54430.0,0.1531]
[1725820289357,0.011,54431.0,54430.0,0.1531]
[1725820289588,0.06915196,54431.0,54430.0,0.1531]
[1725820290017,0.011,54431.0,54430.0,0.16754114]
[1725820290290,0.09373103,54431.0,54430.0,0.35395955]
[1725820290516,0.09373103,54431.0,54430.0,0.64791455]
[1725820290517,0.011,54431.0,54430.0,0.64791455]
[1725820291367,0.06825406,54431.0,54430.0,0.35395955]
[1725820292481,0.17803558,54431.0,54430.0,0.35395955]
[1725820292704,0.06825406,54431.0,54430.0,0.35395955]
[1725820294088,0.06825406,54431.0,54430.0,0.35558955]
[1725820295717,0.06825406,54431.0,54430.0,0.64954455]
[1725820296885,0.06783079,54431.0,54430.0,0.64954455]
[1725820297373,0.20580971,54431.0,54430.0,0.96349955]
[1725820297612,0.09377336,54431.0,54430.0,1.25745455]
[1725820297852,0.004,54431.0,54430.0,1.25645455]
[1725820298153,0.011,54431.0,54430.0,1.34586856]
[1725820298368,0.011,54431.0,54430.0,1.63982356]
[1725820298611,0.004,54431.0,54430.0,1.64082356]
[1725820298814,0.000815,54432.0,54431.0,1.51428336]
[1725820299062,0.000815,54432.0,54431.0,1.68728336]
[1725820299271,0.000815,54432.0,54431.0,1.79029882]
[1725820300621,0.000815,54432.0,54431.0,1.69188481]
[1725820300837,0.000815,54432.0,54431.0,1.75729882]
[1725820301481,0.001815,54432.0,54431.0,1.77129882]
[1725820302161,0.002815,54432.0,54431.0,1.77829882]
[1725820307422,0.002815,54432.0,54431.0,1.48434882]
[1725820315723,0.08,54447.0,54431.0,1.48434882]
[1725820315985,0.20195303,54446.0,54442.0,0.146943]
[1725820316184,0.20195303,54446.0,54445.0,0.008]
[1725820316595,0.20195303,54446.0,54445.0,0.022506]
[1725820316772,0.05501803,54446.0,54445.0,0.008]
[1725820317188,0.146934,54446.0,54445.0,0.008]
[1725820317424,0.20195203,54446.0,54445.0,0.008]
[1725820317653,0.20195203,54446.0,54445.0,0.022506]
[1725820317863,0.146934,54446.0,54445.0,0.008]
[1725820318069,0.146934,54446.0,54445.0,0.022506]
[1725820318070,0.20195203,54446.0,54445.0,0.022506]
[1725820318269,0.20195203,54446.0,54445.0,0.014506]
[1725820318471,0.146937,54445.0,54444.0,0.018]
[1725820318863,0.177237,54445.0,54444.0,0.03250745]
[1725820320094,0.0303,54445.0,54444.0,0.01450745]
[1725820320300,0.0303,54445.0,54444.0,0.03250745]
[1725820320899,0.0303,54445.0,54444.0,0.03650745]
[1725820321374,0.55952501,54445.0,54444.0,0.01850745]
[1725820321591,0.85339901,54445.0,54444.0,0.01850745]
[1725820321798,0.93592606,54445.0,54444.0,0.004]
[1725820322450,0.93592606,54445.0,54438.0,0.005]
[1725820322451,0.146952,54440.0,54438.0,0.005]
[1725820322681,0.0303,54439.0,54438.0,0.023]
[1725820322911,0.0303,54439.0,54438.0,0.018]
[1725820323143,0.177255,54439.0,54437.0,0.005]
[1725820323369,0.177255,54439.0,54436.0,0.005]
[1725820323370,0.23225986,54439.0,54436.0,0.005]